bitfinex/quotes_ETHUSD_20220105
["timestamp","ask_amount","ask_price","bid_price","bid_amount"]
[1641404813169,7.15,3789.7,3788.8,3.47935093]
[1641404813170,7.15,3789.6,3788.8,3.47935093]
[1641404813369,1.3197448,3789.4,3788.8,3.47935093]
[1641404813668,0.378,3789.3,3789.2,0.00284211]
[1641404814772,0.378,3789.3,3789.0,0.00397896]
[1641404815833,0.378,3789.3,3789.2,0.78225729]
[1641404821677,0.0008,3789.6,3789.2,0.78225729]
[1641404821878,0.0008,3789.6,3789.4,0.6596]
[1641404822277,0.0008,3789.6,3789.5,6.05113684]
[1641404822477,0.0008,3789.6,3789.5,6.94026028]
[1641404823079,0.0008,3789.6,3789.5,8.25933028]
[1641404823314,3.61258925,3789.8,3789.5,8.25933028]
[1641404823514,3.61258925,3789.8,3789.6,1.3190821]
[1641404823915,3.61258925,3789.8,3789.7,4.70955]
[1641404824719,3.61258925,3789.8,3789.7,0.65955]
[1641404827197,3.61258925,3789.8,3789.7,1.7952496]
[1641404827797,3.61258925,3789.8,3789.6,1.34654443]
[1641404828701,1.07852126,3789.7,3789.5,1.34768127]
[1641404828902,3.78052518,3789.7,3789.5,1.34768127]
[1641404829102,1.07852126,3789.7,3789.5,1.34768127]
[1641404829301,7.80981,3789.6,3789.5,1.34768127]
[1641404829499,8.18781,3789.6,3789.5,1.34768127]
[1641404829719,8.18781,3789.6,3789.5,0.00113684]
[1641404830102,1.03781,3789.6,3789.1,0.00341054]
[1641404830304,0.378,3789.6,3789.1,0.66296015]
[1641404831425,0.378,3789.6,3789.2,1.34654443]
[1641404831825,0.378,3789.6,3789.3,0.00227369]
[1641404832625,0.378,3789.6,3789.3,1.34881812]
[1641404833026,0.378,3789.6,3789.4,0.00170527]
[1641404833230,0.378,3789.6,3789.4,1.26718643]
[1641404833428,1.68949643,3789.5,3789.4,1.26718643]
[1641404833627,1.68949643,3789.5,3789.4,1.26548116]
[1641404833828,3.61258925,3789.8,3789.4,2.61202559]
[1641404834228,3.61258925,3789.8,3789.6,0.77343168]
[1641404834674,1.69074039,3789.7,3789.6,0.77343168]
[1641404835074,1.69074039,3789.7,3789.5,1.34768127]
[1641404835677,3.61258925,3789.8,3789.6,2.61202559]
[1641404836276,3.61258925,3789.8,3789.6,1.34654443]
[1641404836481,3.61258925,3789.8,3789.7,0.77248714]
[1641404836878,3.61258925,3789.8,3789.7,2.11903157]
[1641404837081,3.61258925,3789.8,3789.7,2.95593296]
[1641404837280,3.61258925,3789.8,3789.7,2.18344582]
[1641404837881,3.61258925,3789.8,3789.7,2.10238255]
[1641404837882,5.30309832,3789.8,3789.7,2.10238255]
[1641404839522,3.61258925,3789.8,3789.7,3.44892698]
[1641404843172,3.61258925,3789.8,3789.7,2.10238255]
[1641404846529,3.91258925,3789.8,3789.7,2.10238255]
[1641404846731,3.91258925,3789.8,3789.7,3.44749226]
[1641404846929,3.91258925,3789.8,3789.7,2.61059087]
[1641404847329,5.59759904,3789.8,3789.5,1.266618]
[1641404847930,1.68500979,3789.7,3789.5,0.00113684]
[1641404848128,1.68500979,3789.7,3789.6,0.72628181]
[1641404848530,2.34470939,3789.7,3789.6,1.99176297]
[1641404854920,0.6596996,3789.7,3789.6,3.33687268]
[1641404855521,0.6596996,3789.7,3789.6,1.99176297]
[1641404856525,0.6596996,3789.7,3789.6,3.33687268]
[1641404856728,4.27228885,3789.7,3789.6,3.33687268]
[1641404856981,4.27228885,3789.7,3789.6,1.99176297]
[1641404857572,4.27228885,3789.7,3789.6,1.26548116]
[1641404857773,4.95028885,3789.7,3789.6,1.26548116]
[1641404858775,7.82612109,3789.7,3789.5,0.00113684]
[1641404858977,8.48591109,3789.7,3789.5,0.00113684]
[1641404859176,6.50655489,3789.7,3789.5,0.00113684]
[1641404859380,1.55626604,3789.6,3789.5,0.00113684]
[1641404859577,1.93426604,3789.6,3789.5,0.00113684]
[1641404859981,0.378,3789.6,3789.5,0.00113684]
[1641404861122,0.378,3789.6,3789.5,0.76653175]
[1641404861731,0.378,3789.6,3789.5,2.03201291]
[1641404862531,0.378,3789.6,3789.5,3.82502775]
[1641404864032,0.378,3789.6,3789.5,3.058496]
[1641404864571,0.678,3789.6,3789.5,3.058496]
[1641404864974,0.678,3789.6,3789.4,1.26718643]
[1641404865370,1.3377294,3789.6,3789.4,1.26718643]
[1641404865572,1.3377294,3789.6,3789.4,3.06020127]
[1641404866576,0.678,3789.6,3789.4,3.06020127]
[1641404866773,0.378,3789.6,3789.4,3.06020127]
[1641404866973,3.61258925,3789.7,3789.5,2.60401343]
[1641404867575,3.61258925,3789.7,3789.5,5.25487971]
[1641404867773,3.61258925,3789.7,3789.6,7.52373484]
[1641404868625,3.61258925,3789.7,3789.6,2.57373484]
[1641404868826,3.61258925,3789.7,3789.4,8.70670097]
[1641404869025,3.61258925,3789.7,3789.6,1.26548116]
[1641404869631,3.61258925,3789.7,3789.5,3.95538702]
[1641404870532,3.61258925,3789.7,3789.6,2.68990586]
[1641404870931,3.91258925,3789.7,3789.6,2.68990586]
[1641404871333,3.91258925,3789.7,3789.5,1.26548116]
[1641404871733,3.91258925,3789.7,3789.6,3.05882781]
[1641404872374,3.91258925,3789.7,3789.6,1.26548116]
[1641404872573,3.91258925,3789.7,3789.4,0.00170527]
[1641404872574,3.91258925,3789.7,3789.4,3.95709229]
[1641404872774,4.57227295,3789.7,3789.4,3.95709229]
[1641404874882,4.57227295,3789.7,3789.6,1.79304129]
[1641404875079,4.57227295,3789.7,3789.4,3.95709229]
[1641404875282,0.6597844,3789.6,3789.4,3.95709229]
[1641404875920,1.0377844,3789.6,3789.4,3.95709229]
[1641404876525,1.0377844,3789.6,3789.4,4.61818565]
[1641404876724,1.0377844,3789.6,3789.5,1.34489264]
[1641404877125,1.0377844,3789.6,3789.4,1.92827979]
[1641404877326,1.0377844,3789.6,3789.5,1.26548116]
[1641404877728,1.0377844,3789.6,3789.5,2.25627185]
[1641404880782,1.0377844,3789.6,3789.5,1.26548116]
[1641404883522,1.0377844,3789.6,3789.5,2.61007688]
[1641404884526,1.0377844,3789.6,3789.5,1.34459572]
[1641404884925,1.0377844,3789.6,3789.5,2.61007688]
[1641404886026,1.0377844,3789.6,3789.5,1.26548116]
[1641404886830,4.65037365,3789.6,3789.5,1.26548116]
[1641404887471,4.95037365,3789.6,3789.5,1.26548116]
[1641404887670,5.25037365,3789.6,3789.5,1.26548116]
[1641404888475,7.1235038,3789.6,3789.5,1.26548116]
[1641404888675,7.2,3789.5,3789.4,0.00170527]
[1641404888873,7.2,3789.5,3789.1,1.34459572]
[1641404888874,11.58441286,3789.5,3789.1,1.34459572]
[1641404889073,1.31993,3789.4,3789.1,1.34459572]
[1641404889273,7.2,3789.2,3788.8,1.79279409]
[1641404889474,0.378,3789.1,3788.8,1.79279409]
[1641404889673,1.678,3789.1,3788.9,0.00170527]
[1641404889872,1.978,3789.1,3788.9,0.00170527]
[1641404890477,0.65996,3788.8,3788.5,0.00397897]
[1641404890729,0.65995,3788.7,3788.5,0.00397897]
[1641404890924,0.95995,3788.7,3788.5,0.00397897]
[1641404891928,3.65995,3788.6,3788.5,0.00397897]
[1641404892127,0.65995,3788.6,3788.5,0.00397897]
[1641404892328,0.65995,3788.6,3788.4,0.00454739]
[1641404892528,1.97982,3788.6,3788.4,0.00454739]
[1641404892727,1.31987,3788.6,3788.4,0.00454739]
[1641404892933,0.6599347,3788.5,3788.4,0.00454739]
[1641404896189,1.3195732,3789.1,3788.4,0.00454739]
[1641404896390,10.08382922,3789.6,3788.4,0.00454739]
[1641404896589,8.76428922,3789.6,3788.4,0.00454739]
[1641404897393,3.845,3789.4,3788.4,0.00454739]
[1641404897590,0.659717,3789.1,3788.9,1.79341923]
[1641404897790,0.659717,3789.1,3789.0,0.69993124]
[1641404897990,0.659717,3789.1,3789.0,0.70106809]
[1641404900124,0.659717,3789.1,3789.0,2.49448732]
[1641404900935,0.659717,3789.1,3789.0,0.70106809]
[1641404901329,0.659717,3789.1,3789.0,2.49448732]
[1641404903581,0.65972,3789.3,3789.0,0.70106809]
[1641404904180,0.65972,3789.3,3789.2,1.34413146]
[1641404907527,0.65972,3789.3,3789.0,0.70106809]
[1641404907731,0.65972,3789.3,3789.0,2.49448732]
[1641404907932,0.6597626,3789.2,3789.0,2.49448732]
[1641404908929,0.6597626,3789.2,3789.1,0.80955073]
[1641404910176,0.6597626,3789.2,3789.1,2.15369683]
[1641404910777,0.6597626,3789.2,3789.1,0.80955073]
[1641404916636,0.6597626,3789.2,3789.0,1.34528295]
[1641404916835,4.93219185,3789.2,3789.0,1.34528295]
[1641404917677,4.93219185,3789.2,3789.0,2.15483368]
[1641404918079,4.93219185,3789.2,3789.1,0.80955073]
[1641404920188,4.93219185,3789.2,3789.0,0.00113685]
[1641404920383,4.93219185,3789.2,3789.1,0.80955073]
[1641404921227,4.93219185,3789.2,3789.0,0.81068758]
[1641404921726,3.93219185,3789.2,3789.0,0.81068758]
[1641404922127,3.93219185,3789.2,3789.0,0.00113685]
[1641404923128,3.93219185,3789.2,3789.0,0.81068758]
[1641404923727,4.59203185,3789.2,3789.0,0.00113685]
[1641404924128,4.59203185,3789.2,3788.8,0.0022737]
[1641404924331,1.3197324,3789.1,3788.8,0.0022737]
[1641404924576,0.6598624,3789.1,3788.8,0.0022737]
[1641404924772,0.65987,3789.0,3788.8,1.3464198]
[1641404925573,1.31973,3789.0,3788.8,0.0022737]
[1641404925975,1.31973,3789.0,3788.7,2.70412952]
[1641404926175,1.31973,3789.0,3788.8,0.0022737]
[1641404928631,0.6598,3789.1,3788.8,0.0022737]
[1641404928833,0.65978,3789.1,3788.8,0.0022737]
[1641404929635,0.65978,3789.1,3789.0,1.34409593]
[1641404930033,0.65978,3789.1,3789.0,1.34523278]
[1641404930231,0.65978,3789.1,3789.0,0.00113685]
[1641404931033,5.89202915,3789.2,3789.0,0.00113685]
[1641404931233,5.59202915,3789.2,3789.0,0.00113685]
[1641404931532,0.3,3789.1,3789.0,0.00113685]
[1641404932786,2.41491281,3789.1,3789.0,0.00113685]
[1641404932983,3.07479281,3789.1,3789.0,0.00113685]
[1641404933184,3.07479281,3789.1,3788.8,0.0022737]
[1641404933384,1.31976,3789.0,3788.8,0.0022737]
[1641404935587,1.31976,3789.0,3788.9,0.70195935]
[1641404936444,1.31976,3789.0,3788.8,0.0022737]
[1641404940078,1.97964,3789.0,3788.8,0.0022737]
[1641404940278,1.31976,3789.0,3788.8,0.0022737]
[1641404940677,1.69776,3789.0,3788.8,0.0022737]
[1641404942878,2.35765,3789.0,3788.8,0.0022737]
[1641404944726,1.03788,3789.0,3788.8,0.0022737]
[1641404945331,1.03788,3789.0,3788.8,0.8176442]
[1641404946331,1.03788,3789.0,3788.8,0.0022737]
[1641404946634,1.69772,3789.0,3788.9,0.8153705]
[1641404946832,5.31030925,3789.0,3788.9,0.8153705]
[1641404947277,8.03205479,3789.0,3788.9,0.8153705]
[1641404947473,8.03205479,3789.0,3788.8,0.82364637]
[1641404947474,7.2,3788.9,3788.8,0.82364637]
[1641404947675,7.2,3788.9,3788.4,0.97878279]
[1641404947676,7.2,3788.7,3788.4,0.97878279]
[1641404947878,6.4230834,3788.6,3788.4,0.97878279]
[1641404948073,5.76305,3788.6,3788.5,0.00170527]
[1641404948276,5.76301,3788.6,3788.5,0.00170527]
[1641404948474,5.51301,3788.6,3788.2,0.00341054]
[1641404948676,1.32009,3788.4,3787.9,0.00511581]
[1641404948977,0.66003,3788.1,3787.9,0.00511581]
[1641404949175,0.378,3788.0,3787.9,0.00511581]
[1641404949579,0.378,3788.0,3787.8,0.83285214]
[1641404949981,1.0380145,3788.0,3787.9,0.00511581]
[1641404950583,0.378,3788.5,3787.9,0.00511581]
[1641404951237,0.378,3788.5,3788.0,0.65988]
[1641404951638,0.378,3788.5,3788.1,0.00397896]
[1641404952035,0.378,3788.5,3787.9,0.00511581]
[1641404952238,0.378,3788.5,3787.8,0.00568423]
[1641404952439,0.65998,3788.3,3787.8,0.00568423]
[1641404952641,0.378,3788.2,3787.8,0.00568423]
[1641404953239,0.378,3788.2,3787.7,0.88315535]
[1641404953438,0.378,3788.2,3787.8,0.00568423]
[1641404958240,0.378,3788.2,3787.8,1.34664825]
[1641404958632,0.378,3788.2,3787.9,1.34607983]
[1641404959033,0.378,3788.2,3788.0,0.00454738]
[1641404961536,0.6599712,3788.1,3787.9,0.00511581]
[1641404961737,0.378,3788.0,3787.9,0.00511581]
[1641404962386,0.378,3788.0,3787.9,1.34607983]
[1641404964994,0.378,3788.0,3787.9,0.00511581]
[1641404965394,0.378,3788.0,3787.7,1.34096402]
[1641404965395,0.378,3788.0,3787.8,0.00568423]
[1641404965832,0.378,3788.0,3787.9,1.34096402]
[1641404966337,0.378,3788.0,3787.9,1.34607983]
[1641404967333,0.378,3788.0,3787.9,0.00511581]
[1641404967736,0.378,3788.0,3787.8,0.00568423]
[1641404968137,0.378,3788.0,3787.9,0.57035718]
[1641404968535,1.038021,3788.0,3787.9,0.57547299]
[1641404971801,7.15,3787.9,3787.6,1.34096402]
[1641404972000,4.725,3787.7,3787.6,1.34096402]
[1641404972306,5.103,3787.7,3787.6,1.34096402]
[1641404972501,5.403,3787.7,3787.6,1.34096402]
[1641404972701,6.06321,3787.7,3787.6,1.34096402]
[1641404972903,0.64214329,3787.4,3787.1,1.34096402]
[1641404973102,0.378,3787.3,3787.1,1.34096402]
[1641404973334,0.378,3787.3,3787.2,0.00397896]
[1641404974135,3.751312,3787.3,3787.2,0.00397896]
[1641404974336,1.21831289,3787.3,3787.1,0.00454739]
[1641404974538,2.53879289,3787.3,3787.1,0.00454739]
[1641404974737,0.6602489,3787.2,3787.1,0.00454739]
[1641404974936,7.1382489,3787.2,3787.1,0.00454739]
[1641404975137,1.0382489,3787.2,3787.1,0.00454739]
[1641404976138,1.0382489,3787.2,3786.6,0.0073895]
[1641404976139,0.66025,3787.0,3786.6,0.0073895]
[1641404976341,0.6602494,3786.8,3786.6,0.0073895]
[1641404976543,4.128,3786.7,3786.6,0.0073895]
[1641404976746,0.378,3786.7,3786.6,0.0073895]
[1641404976978,3.878,3786.7,3786.6,0.0073895]
[1641404977681,4.64586477,3786.7,3786.6,0.0073895]
[1641404977880,4.64586477,3786.7,3786.4,0.00852635]
[1641404978080,1.9811091,3786.6,3786.4,0.00852635]
[1641404978280,4.828,3786.5,3786.4,0.00852635]
[1641404978680,4.828,3786.5,3786.2,0.0096632]
[1641404978681,0.378,3786.5,3786.2,0.0096632]
[1641404978888,2.89725885,3786.5,3786.2,0.0096632]
[1641404979487,1.03836,3786.5,3786.2,0.0096632]
[1641404979691,1.6987172,3786.5,3786.0,0.01080004]
[1641404981340,1.0383572,3786.5,3786.0,0.01080004]
[1641404982338,0.378,3786.5,3786.0,0.01080004]
[1641404983141,0.328,3786.5,3786.0,0.01080004]
[1641404985997,0.328,3786.5,3786.3,0.74161991]
[1641404986396,0.328,3786.5,3786.4,0.00852635]
[1641404992485,0.328,3786.5,3786.4,0.52946289]
[1641405002889,1.14153696,3786.5,3786.4,0.52946289]
[1641405003334,0.328,3786.5,3786.4,0.52946289]
[1641405004742,1.77172051,3786.5,3786.4,0.52946289]
[1641405005144,8.16006101,3786.4,3786.1,1.34096402]
[1641405005343,0.66049,3785.8,3785.5,1.34096402]
[1641405005547,0.378,3785.7,3785.5,1.34096402]
[1641405006042,0.78710105,3785.6,3785.5,1.34096402]
[1641405006245,1.16510105,3785.6,3785.5,1.34096402]
[1641405006445,1.16510105,3785.6,3785.5,1.34607983]
[1641405006843,1.46510105,3785.6,3785.5,0.00511581]
[1641405007095,2.46510105,3785.6,3785.5,0.00511581]
[1641405007293,7.19010105,3785.6,3785.2,0.00682108]
[1641405007497,0.96061,3785.4,3785.2,0.00682108]
[1641405007696,7.128,3785.3,3785.2,0.00682108]
[1641405007894,7.428,3785.3,3785.2,0.00682108]
[1641405008099,1.678,3785.3,3785.2,0.00682108]
[1641405008495,5.06065,3785.2,3785.1,0.0073895]
[1641405008695,5.43865,3785.2,3785.1,0.0073895]
[1641405008895,1.03865,3785.2,3785.1,0.0073895]
[1641405009903,1.33865,3785.2,3785.1,0.0073895]
[1641405010201,1.33865,3785.2,3784.6,0.01023162]
[1641405010202,0.66065,3784.9,3784.6,0.01023162]
[1641405010402,1.06616113,3784.8,3784.6,0.01023162]
[1641405011263,1.06616113,3784.8,3784.5,0.01080005]
[1641405011465,4.2,3784.7,3784.4,1.30680687]
[1641405011764,0.6607,3784.5,3784.1,1.78793298]
[1641405011963,0.378,3784.4,3784.1,1.78793298]
[1641405012162,0.378,3784.4,3784.2,0.00170527]
[1641405012663,0.678,3784.4,3784.0,0.00284211]
[1641405012864,0.68085292,3784.1,3784.0,0.00284211]
[1641405013068,1.05885292,3784.1,3784.0,0.00284211]
[1641405013465,0.378,3784.1,3784.0,0.00284211]
[1641405014487,0.378,3784.1,3784.0,3.00284211]
[1641405015186,0.66174685,3784.7,3784.1,7.15]
[1641405015187,0.00113685,3784.7,3784.1,7.15]
[1641405015387,0.00113685,3784.7,3784.2,2.78821836]
[1641405015793,0.00113685,3784.7,3784.3,0.00113684]
[1641405016391,0.00113685,3784.7,3784.6,6.38940959]
[1641405016593,0.6604929,3785.5,3784.9,0.46207015]
[1641405016791,0.378,3785.4,3784.9,0.46207015]
[1641405016992,0.00170527,3785.0,3784.9,0.46207015]
[1641405020441,0.37970527,3785.0,3784.9,0.46207015]
[1641405021044,1.28964843,3785.0,3784.9,0.46207015]
[1641405021243,1.58964843,3785.0,3784.9,0.46207015]
[1641405021846,1.28964843,3785.0,3784.9,0.46207015]
[1641405022504,1.88964843,3785.0,3784.9,0.46207015]
[1641405022703,4.11720282,3785.0,3784.9,0.46207015]
[1641405022903,1.58964843,3785.0,3784.9,0.46207015]
[1641405025733,1.28964843,3785.0,3784.9,0.46207015]
[1641405027343,1.28964843,3785.0,3784.9,0.80269069]
[1641405027940,1.28964843,3785.0,3784.9,0.46207015]
[1641405028747,1.58964843,3785.0,3784.9,0.46207015]
[1641405029786,1.28964843,3785.0,3784.9,0.46207015]
[1641405030392,1.28964843,3785.0,3784.9,0.80267901]
[1641405030991,1.58964843,3785.0,3784.9,0.80267901]
[1641405031593,1.58964843,3785.0,3784.9,0.46207015]
[1641405031793,1.58964843,3785.0,3784.9,0.46293488]
[1641405032795,1.88964843,3785.0,3784.9,0.46293488]
[1641405033232,2.88964843,3785.0,3784.9,0.46293488]
[1641405036144,2.88964843,3785.0,3784.3,0.00113684]
[1641405036145,7.15,3784.9,3784.3,0.00113684]
[1641405036343,0.66077,3784.6,3784.3,0.00113684]
[1641405036546,0.66077,3784.6,3783.9,0.00454739]
[1641405036547,0.378,3784.5,3783.9,0.00454739]
[1641405036761,4.725,3784.3,3783.9,0.00454739]
[1641405036989,0.378,3784.2,3783.8,0.00511581]
[1641405037187,0.75612715,3784.1,3783.8,0.00511581]
[1641405037386,3.39952285,3784.1,3784.0,0.33016681]
[1641405037587,6.03837285,3784.1,3784.0,0.33016681]
[1641405037786,6.03837285,3784.1,3784.0,0.33414577]
[1641405038188,6.03837285,3784.1,3783.1,2.1557568]
[1641405038189,15.42,3783.9,3783.1,1.33393617]
[1641405038387,15.42,3783.9,3783.0,1.34715312]
[1641405038388,0.01234027,3783.3,3783.0,1.34715312]
[1641405038588,1.33441127,3783.3,3783.2,0.00454739]
[1641405038788,1.700071,3783.3,3783.2,0.00454739]
[1641405038987,2.661101,3783.3,3783.2,0.00454739]
[1641405039190,3.68684518,3783.3,3783.2,0.00454739]
[1641405039394,4.68684518,3783.3,3783.2,0.00454739]
[1641405039591,6.00889518,3783.3,3783.2,0.00454739]
[1641405040491,8.66930223,3783.3,3783.2,0.00454739]
[1641405041142,13.39430223,3783.3,3783.0,1.79180727]
[1641405041340,20.145,3783.1,3783.0,0.01321695]
[1641405041541,3.25,3783.0,3782.9,1.74180727]
[1641405041743,5.103,3783.0,3782.9,1.74180727]
[1641405042146,5.103,3783.0,3782.8,2.9238722]
[1641405042444,5.7639613,3783.0,3782.8,2.9238722]
[1641405042643,5.7639613,3783.0,3782.9,0.00100145]
[1641405042847,6.3639613,3783.0,3782.9,0.00100145]
[1641405043044,7.3639613,3783.0,3782.9,0.00100145]
[1641405045390,8.921695,3783.0,3782.9,0.00100145]
[1641405045588,7.3639613,3783.0,3782.9,0.00100145]
[1641405051044,7.0639613,3783.0,3782.9,0.00100145]
[1641405051246,0.378,3783.0,3782.9,2.58468287]
[1641405051645,0.65237626,3783.3,3782.9,2.58468287]
[1641405051646,0.0008,3783.3,3782.9,2.58468287]
[1641405052092,0.0008,3783.3,3783.0,0.00113685]
[1641405052497,0.0008,3783.3,3783.2,3.40525076]
[1641405052693,0.0008,3783.3,3783.2,4.09164913]
[1641405053098,12.6368,3783.6,3783.3,6.4]
[1641405053296,12.6368,3783.6,3783.2,0.80525076]
[1641405053499,7.99990527,3783.6,3783.3,7.15]
[1641405053701,7.499,3783.6,3783.3,7.81063]
[1641405053897,7.499,3783.6,3783.3,0.66176685]
[1641405054301,7.499,3783.6,3783.3,0.00113685]
[1641405055300,7.499,3783.6,3783.2,0.75638761]
[1641405055500,0.00113685,3783.5,3783.2,0.75638761]
[1641405055735,0.00113685,3783.5,3783.1,0.00097238]
[1641405056337,0.30113685,3783.5,3783.1,0.00097238]
[1641405056539,0.66082,3783.4,3783.1,0.00097238]
[1641405056939,0.68891897,3783.3,3783.1,0.00097238]
[1641405066654,0.68891897,3783.3,3783.2,2.69012885]
[1641405066856,4.30150822,3783.3,3783.2,2.69012885]
[1641405067491,4.30150822,3783.3,3783.1,1.34527171]
[1641405068492,4.25150822,3783.3,3783.1,1.34527171]
[1641405069296,4.25150822,3783.3,3783.1,0.00097238]
[1641405069799,4.25150822,3783.3,3783.1,1.34527171]
[1641405070400,4.62950822,3783.3,3783.1,1.34527171]
[1641405071345,4.62950822,3783.3,3783.2,1.34429933]
[1641405074606,4.62950822,3783.3,3783.1,1.34429933]
[1641405076014,4.92950822,3783.3,3783.1,1.34429933]
[1641405076213,4.45,3783.2,3783.1,1.34429933]
[1641405076412,4.828,3783.2,3782.9,0.19757386]
[1641405076616,4.828,3783.2,3783.1,0.1987107]
[1641405076617,5.48899,3783.2,3783.1,0.1987107]
[1641405076813,7.15,3783.1,3782.7,1.34429933]
[1641405077013,8.13783186,3782.8,3782.7,1.34429933]
[1641405077213,1.66583186,3782.8,3782.7,1.34429933]
[1641405077414,1.96583186,3782.8,3782.7,1.34429933]
[1641405077614,2.96583186,3782.8,3782.7,1.34429933]
[1641405078015,0.74903381,3782.7,3782.5,0.0037]
[1641405078281,12.253,3782.6,3782.5,0.0037]
[1641405078481,14.88410296,3782.6,3782.5,0.0037]
[1641405078674,14.88410296,3782.6,3782.1,1.79239911]
[1641405078675,7.15,3782.5,3782.1,1.79239911]
[1641405078874,7.15,3782.5,3781.8,2.69012885]
[1641405078875,4.725,3782.2,3781.8,1.34473075]
[1641405079074,4.725,3782.0,3781.8,1.34473075]
[1641405079275,0.378,3781.9,3781.8,1.34473075]
[1641405079674,0.378,3781.9,3781.8,1.35212026]
[1641405079875,0.378,3781.9,3781.8,1.25212026]
[1641405080073,0.378,3781.9,3781.8,0.00738951]
[1641405080477,0.378,3781.9,3781.7,0.00795793]
[1641405080683,0.378,3781.9,3781.4,0.0096632]
[1641405081083,0.378,3781.9,3781.5,1.79239911]
[1641405081280,0.67671439,3782.3,3782.0,0.84105649]
[1641405081680,0.67671439,3782.3,3782.1,0.00568424]
[1641405081879,0.67016346,3782.3,3782.1,0.00568424]
[1641405083493,0.67016346,3782.3,3782.0,0.00625266]
[1641405084495,0.67016346,3782.3,3782.0,1.79865177]
[1641405084897,0.378,3782.2,3782.1,0.00568424]
[1641405085746,0.378,3782.2,3781.9,0.00682109]
[1641405089693,0.378,3782.2,3782.0,0.00110051]
[1641405090096,0.378,3782.2,3782.1,0.00568424]
[1641405092797,3.06688468,3782.2,3782.1,0.00568424]
[1641405092995,4.53486346,3782.2,3782.1,0.00568424]
[1641405093247,4.53041471,3782.2,3782.1,0.00568424]
[1641405093438,1.978,3782.2,3782.1,0.00568424]
[1641405093639,0.978,3782.2,3782.1,0.00568424]
[1641405093840,2.33914,3782.2,3782.1,0.00568424]
[1641405094041,2.63914,3782.2,3782.1,0.00568424]
[1641405094449,1.63914,3782.2,3782.1,0.00568424]
[1641405094646,2.63914,3782.2,3782.1,0.00568424]
[1641405094845,0.978,3782.2,3782.1,0.00568424]
[1641405095047,1.978,3782.2,3782.1,0.00568424]
[1641405095245,0.978,3782.2,3782.1,0.00568424]
[1641405095445,1.978,3782.2,3782.1,0.00568424]
[1641405095648,0.978,3782.2,3782.1,0.00568424]
[1641405095847,1.978,3782.2,3782.1,0.00568424]
[1641405096046,0.978,3782.2,3782.1,0.00568424]
[1641405096247,1.978,3782.2,3782.1,0.00568424]
[1641405096651,0.978,3782.2,3782.1,0.00568424]
[1641405096848,5.59058925,3782.2,3782.1,0.00568424]
[1641405097287,5.59058925,3782.2,3782.1,0.15561381]
[1641405097788,5.59058925,3782.2,3782.1,0.00568424]
[1641405097789,4.99058925,3782.2,3782.1,0.00568424]
[1641405097988,5.59058925,3782.2,3782.1,0.00568424]
[1641405098390,5.59058925,3782.2,3782.1,0.15561381]
[1641405098688,5.29058925,3782.2,3782.1,0.15561381]
[1641405099797,5.59058925,3782.2,3782.1,0.15561381]
[1641405100495,5.59058925,3782.2,3782.1,0.15670845]
[1641405100744,5.29058925,3782.2,3782.1,0.15670845]
[1641405100949,4.99058925,3782.2,3782.1,0.15670845]
[1641405101149,5.29058925,3782.2,3782.1,0.15670845]
[1641405101851,3.99058925,3782.2,3782.1,0.15670845]
[1641405102060,3.61258925,3782.2,3782.1,0.15670845]
[1641405102451,3.61258925,3782.2,3782.1,5.95670845]
[1641405102852,3.61258925,3782.2,3782.1,6.79627539]
[1641405103653,3.61258925,3782.2,3782.1,0.99627539]
[1641405104251,3.61258925,3782.2,3782.1,3.52252702]
[1641405104504,3.61258925,3782.2,3782.1,8.14627539]
[1641405104891,3.61258925,3782.2,3782.1,9.9386745]
[1641405105900,3.61258925,3782.2,3782.1,11.2604185]
[1641405106301,3.61258925,3782.2,3782.1,9.46801939]
[1641405106599,3.61258925,3782.2,3782.1,12.4632754]
[1641405107802,1.8509275,3782.2,3782.1,12.4632754]
[1641405108743,1.8509275,3782.2,3782.1,11.1415314]
[1641405109646,1.8509275,3782.2,3782.1,3.9915314]
[1641405110443,1.8509275,3782.2,3782.1,6.9415314]
[1641405110645,1.8509275,3782.2,3782.1,6.67779196]
[1641405111248,1.8509275,3782.2,3782.1,3.68253595]
[1641405111648,1.8509275,3782.2,3782.1,6.20806974]
[1641405111850,7.499,3783.6,3782.2,7.1508725]
[1641405112097,7.499,3783.6,3783.1,7.16268371]
[1641405112296,7.499,3783.6,3783.1,8.01955522]
[1641405112297,5.6688,3783.6,3783.1,8.01955522]
[1641405112500,5.0748,3783.6,3783.1,8.31955522]
[1641405112697,0.00227369,3783.5,3783.1,8.31955522]
[1641405113099,0.00170527,3783.4,3783.3,7.86055]
[1641405113299,0.00170527,3783.4,3783.3,8.81052109]
[1641405113500,0.33414577,3784.0,3783.4,7.2]
[1641405113898,0.00284211,3783.9,3783.4,7.2]
[1641405114198,0.00227369,3783.8,3783.4,7.2]
[1641405114397,0.00227369,3783.8,3783.7,7.2]
[1641405114600,0.33414577,3784.0,3783.7,7.2]
[1641405114799,0.33414577,3784.0,3783.8,5.41617126]
[1641405115003,0.33414577,3784.0,3783.9,3.28122935]
[1641405115401,0.33755631,3784.0,3783.9,3.28122935]
[1641405115599,0.33755631,3784.0,3783.9,0.81046957]
[1641405116463,0.33755631,3784.0,3783.9,3.39284309]
[1641405117161,0.33755631,3784.0,3783.9,6.08122474]
[1641405117361,0.33755631,3784.0,3783.9,7.08007664]
[1641405117566,0.33755631,3784.0,3783.9,8.39607664]
[1641405118262,0.33755631,3784.0,3783.9,5.81370312]
[1641405118863,0.33755631,3784.0,3783.9,2.60265811]
[1641405119064,0.33755631,3784.0,3783.9,1.94211811]
[1641405120497,0.33755631,3784.0,3783.8,1.34427257]
[1641405120900,0.00284211,3783.9,3783.8,1.34427257]
[1641405121101,0.00284211,3783.9,3783.6,1.79218854]
[1641405121500,0.00227369,3783.8,3783.6,1.79218854]
[1641405121702,0.70115244,3783.8,3783.6,1.79218854]
[1641405121900,7.52970527,3783.7,3783.6,1.79218854]
[1641405122101,7.52970527,3783.7,3783.5,1.79218854]
[1641405122501,4.25113684,3783.6,3783.5,1.79218854]
[1641405122706,0.37913684,3783.6,3783.5,1.79218854]
[1641405122901,0.37913684,3783.6,3782.9,1.79218854]
[1641405123346,0.37913684,3783.6,3783.0,0.0022737]
[1641405123549,0.37913684,3783.6,3783.0,1.79446224]
[1641405123945,0.37913684,3783.6,3783.1,0.00170527]
[1641405124947,0.89887736,3783.4,3783.0,1.74389381]
[1641405125251,0.00113684,3783.3,3782.8,3.64561319]
[1641405125449,0.00113684,3783.3,3783.1,0.14992957]